{"text_format":"1","workbook":"xlsx","n_sheets":3,"sheets":["BON DE COMMANDE-PURCHASE ORDER","ADRESSE","UM"],"not_rendered":{"charts":0,"images":2,"macros":1,"external_links":0,"defined_names":1,"comments":0,"pivot_tables":0},"unopened":[],"bounds":{"document_bytes":16777216,"sheet_cells":100000,"rows_first":2000,"rows_last":500,"rows_between":2000,"halvings":0,"cell_chars":16384,"cell_head_chars":4096},"cells_cut":0,"cells_raw":0,"read":"whole","date_system":"1900"}

{"sheet":"BON DE COMMANDE-PURCHASE ORDER","index":0,"n_rows":45,"n_cols":13,"rows_kept":45,"cut":false,"hidden":false,"merged":[[42,7,42,8],[33,2,33,7],[34,2,34,7],[35,2,35,7],[41,0,41,6],[36,3,36,6],[37,3,37,6],[38,3,38,6],[39,3,39,6],[40,3,40,6],[36,7,36,10],[37,7,37,10],[38,7,38,10],[39,7,39,10],[40,7,40,10],[9,0,9,3],[10,0,10,3],[11,0,11,3],[6,4,11,7],[25,2,25,7],[21,2,21,7],[22,2,22,7],[23,2,23,7],[18,2,18,7],[12,2,12,5],[13,2,13,5],[19,2,19,7],[20,2,20,7],[24,2,24,7],[15,0,16,0],[15,1,16,1],[5,4,5,7],[5,0,5,3],[6,0,6,3],[7,0,7,3],[8,0,8,3],[5,9,5,12],[1,9,1,11],[2,9,2,12],[43,9,43,12],[44,9,44,12],[39,11,40,11],[39,12,40,12],[12,9,12,11],[15,2,16,7],[17,2,17,7],[26,2,26,7],[29,2,29,7],[44,0,44,6],[36,0,36,1],[37,0,37,1],[38,0,38,1],[39,0,39,1],[40,0,40,1],[43,2,43,4],[31,2,31,7],[32,2,32,7],[30,2,30,7],[27,2,27,7],[28,2,28,7]]}
[null,null,null,null,null,null,null,null,null,"Date : ",null,{"$f":"TODAY()","v":"2023-10-06"}]
[null,null,null,null,null,null,null,null,null,"COMMANDE / ORDER:"]
[null,null,null,null,null,null,null,null,null,"Le numéro  du  bon de commande doit apparaître sur la facture. \nThe purchase order number must appear on the invoice."]
[]
[]
["Fournisseur / Supplier",null,null,null,"Expédier à / Ship to",null,null,null,null,"Facturer à / Bill to"]
[null,null,null,null,null,null,null,null,null,"Centre de services scolaire du Littoral"]
[null,null,null,null,null,null,null,null,null,"789, rue Beaulieu"]
[null,null,null,null,null,null,null,null,null,"Sept-Îles (Québec)  G4R 1P8"]
[null,null,null,null,null,null,null,null,null,"A/S: Service des ressources financières"]
[null,null,null,null,null,null,null,null,null,"Courriel: payables@cssdulittoral.gouv.qc.ca"]
[null,null,null,null,null,null,null,null,null,"Tél: 418-962-5558           "]
[null,"Demandé par / Requested by:",null,null,null,null,null,null,"Transport :"]
[null,"Date requise / Req. date:"]
[]
["Ligne / Line","# Article / # Item","Description",null,null,null,null,null,"Date reçue","Quantité ","U / M","Prix unitaire","Prix Total"]
[null,null,null,null,null,null,null,null,"Date received","Quantity",null,"Unit Price","Total Price"]
[1,null,null,null,null,null,null,null,null,null,null,null,{"$f":"IF($A$38<=0, ,J18*L18)","v":0}]
[2,null,null,null,null,null,null,null,null,null,null,null,{"$f":"IF($A$38<=0, ,J19*L19)","v":0}]
[3,null,null,null,null,null,null,null,null,null,null,null,0]
[4,null,null,null,null,null,null,null,null,null,null,null,0]
[5,null,null,null,null,null,null,null,null,null,null,null,0]
[6,null,null,null,null,null,null,null,null,null,null,null,0]
[7,null,null,null,null,null,null,null,null,null,null,null,0]
[8,null,null,null,null,null,null,null,null,null,null,null,0]
[9,null,null,null,null,null,null,null,null,null,null,null,0]
[10,null,null,null,null,null,null,null,null,null,null,null,0]
[11,null,null,null,null,null,null,null,null,null,null,null,0]
[12,null,null,null,null,null,null,null,null,null,null,null,0]
[13,null,null,null,null,null,null,null,null,null,null,null,0]
[14,null,null,null,null,null,null,null,null,null,null,null,0]
[15,null,null,null,null,null,null,null,null,null,null,null,0]
[16,null,null,null,null,null,null,null,null,null,null,null,0]
[17,null,null,null,null,null,null,null,null,null,null,null,0]
[18,null,null,null,null,null,null,null,null,null,null,null,0]
[19,null,null,null,null,null,null,null,null,null,null,null,0]
["Code budgétaire / Budget code",null,"%","# ligne / line #",null,null,null,"  Projet-Mesure / Project-Measure",null,null,null,"Sous-Total/Sub-total:",{"$f":"IF(A38<=0,\" \",SUM(M18:M36))","v":" "}]
[null,null,null,null,null,null,null,null,null,null,null,"TPS / GST (5%)",{"$f":"IFERROR(M37*5%,\" \")","v":" "}]
[null,null,null,null,null,null,null,null,null,null,null,"TVQ / QST (9.975%)",{"$f":"IFERROR(M37*9.975%,\" \")","v":" "}]
[null,null,null,null,null,null,null,null,null,null,null,"TOTAL:",{"$f":"IFERROR(M37+M38+M39,\" \")","v":" "}]
[]
[]
[null,"Réception des marchandises / Reception of merchandise :",null,null,null,null,null,"Autorisé par / Authorized by:"]
[null,"Reçu par / Received by  : ",null,null,null,"Date : ",null,null,null,"Direction d'école ou de service / "]
[null,null,null,null,null,null,null,null,null,"School Principal or Department Manager"]

{"sheet":"ADRESSE","index":1,"n_rows":17,"n_cols":3,"rows_kept":17,"cut":false,"hidden":true,"merged":[]}
[null,null,"Centre Marie-Sarah\n24, chemin du Ruisseau\nLa Romaine (Québec)\nG0G 1M0"]
[null,null,"Centre St-Theresa \n1581, boul. Dr-Camille-Marcoux \nBlanc-Sablon (Québec)\nG0G 1C0"]
[null,null,"Centre de services scolaire du Littoral\n789, rue Beaulieu\nSept-Iles (Québec)\nG4R 1P8"]
[null,null,"École  St-Joseph\n2, rue Savoy \nPort-Menier (Québec)\nG0G 2Y0"]
[null,null,"École Gabriel Dionne\n261, avenue de l'Église \nTête-à-la-Baleine (Québec)\nG0G 2W0"]
[null,null,"École Harrington School\n4, allée Mary-Morency, C.P. 160\nHarrington Harbour(Québec)\nG0G 1N0"]
[null,null,"École Kegaska School\n102, rue Jacques Cartier \nKegaska (Québec)\nG0G 1S0"]
[null,null,"École Mecatina School\n2, rue Cove Sud \nLa Tabatière (Québec)\nG0G 1T0"]
[null,null,"École Mgr-Scheffer\n20, rue Mgr-Scheffer\nLourdes-de-Blanc-Sablon (Québec)\nG0G 1W0"]
[null,null,"École Moutain Ridge School\n503, boul. Bonne-Espérance \nVieux-Fort (Québec)\nG0G 2G0"]
[null,null,"École Netagamiou School\n61, chemin Netagamiou\nChevery (Québec)\nG0G 1G0"]
[null,null,"École St-Augustine School\n107, rue de la Brunante, C.P. 158\nSt-Augustin-Saguenay (Québec)\nG0G 2R0"]
[null,null,"École St-Lawrence School\n3, rue St-Lawrence\nMutton Bay (Québec)\nG0G 2C0"]
[null,null,"École St-Paul School\n2, rue Baylis West \nRivière-St-Paul (Québec)\nG0G 2P0"]
[null,null,"Bureau Chevery\n61, chemin Netagamiou \nChevery (Québec)\nG0G 1G0"]
[null,null,"Centre St-Bernard\n16, rue du Cap\nLourdes-de-Blanc-Sablon (Québec)\nG0G 1W0"]
[null,null,"Atelier de réparation\nP.O Box 160\nHarrington Harbour (Québec)\nG0G 1N0"]

{"sheet":"UM","index":2,"n_rows":4,"n_cols":1,"rows_kept":4,"cut":false,"hidden":true,"merged":[]}
[]
["Chacun/each"]
["Boîte/box"]
["-"]